Cogmind - Beta 15 *** ADVENTURER MODE // 2025.08.22 @ 20:54:12 Player: joshuastronomy Result: Self-destructed Performance ------------- Evolutions (1) 500 Regions Visited (3) 600 Robots Destroyed (29) 145 Value Destroyed (1009) 1009 Prototype IDs (3) 60 Alien Tech Used (0) 0 Bonus (0) 0 TOTAL SCORE: 2314 Bonus ------- None Cogmind --------- Core Integrity 133/400 Matter 300/300 Energy 250/250 System Corruption 0% Temperature Cool (15) Movement Core (450) Ox8 Location -9/Materials Parts ------- > --- POWER (2) -------- Ion Engine > --- PROPULSION (2) --- Advanced Treads > --- UTILITY (2) ------ Large Storage Unit > --- WEAPON (3) ------- Katana > --- INVENTORY (15) --- Backup Power I Thermal Generator Heat Sink Large Storage Unit High-capacity Storage Unit Compact Matter Pod (150) Structural Scanner System Shield Datajack Peak State ------------ > --- POWER ------------ Ion Engine Light Ion Engine > --- PROPULSION ------- Advanced Treads Advanced Treads > --- UTILITY ---------- Large Storage Unit Light Armor Plating > --- WEAPON ----------- Heavy Particle Cannon Heavy Particle Cannon Heavy Particle Cannon > --- INVENTORY -------- Advanced Treads Advanced Treads Heat Sink Large Storage Unit High-capacity Storage Unit Compact Matter Pod Structural Scanner System Shield Heavy Particle Cannon Datajack [Rating: 21] Favorites ----------- Power Light Ion Engine Engine Light Ion Engine Power Core Light Nuclear Core Propulsion Light Treads Treads Light Treads Leg Aluminum Leg Utility Large Storage Unit Storage Large Storage Unit Protection Light Armor Plating Weapon Particle Cannon Energy Gun EM Pulse Gun Energy Cannon Particle Cannon Slashing Weapon Katana Build | -11 -10 -10 -9 ------- Run | Yrd Mat Min Mat Slots Evolved 2 | . . . 2 Power 1 | . . . 1 Propulsion . | . . . . Utility . | . . . . Weapon 1 | . . . 1 Parts Attached 27 | 5 8 1 13 Power 3 | 1 1 1 . Engine 2 | 1 . 1 . Core 1 | . 1 . . Reactor . | . . . . Propulsion 8 | 2 . . 6 Treads 6 | 2 . . 4 Leg 2 | . . . 2 Wheel . | . . . . Hover . | . . . . Flight . | . . . . Utility 5 | 1 3 . 1 Device . | . . . . Storage 3 | 1 2 . . Processor . | . . . . Hackware . | . . . . Protection 2 | . 1 . 1 Artifact . | . . . . Weapon 11 | 1 4 . 6 Energy Gun 3 | 1 2 . . Energy Cannon 7 | . 2 . 5 Ballistic Gun . | . . . . Ballistic Cannon . | . . . . Launcher . | . . . . Special Weapon . | . . . . Impact Weapon . | . . . . Slashing Weapon 1 | . . . 1 Piercing Weapon . | . . . . Special Melee Weapon . | . . . . Unidentified Prototypes . | . . . . Parts Lost 8 | . 3 . 5 Power 2 | . 1 . 1 Propulsion 1 | . . . 1 Utility 1 | . . . 1 Weapon 4 | . 2 . 2 Highest Loss Streak 3 | . 2 . 3 To Critical Strikes . | . . . . Average Backups 11 | 3 12 12 9 Power . | . 1 1 . Propulsion 2 | 1 3 3 1 Utility 5 | . 5 5 6 Weapon 1 | 1 1 2 . Tool/Special . | . . . . Unused Backups 14 | . . 3 11 Power 1 | . . 1 . Propulsion 2 | . . 1 1 Utility 7 | . . 1 6 Weapon 3 | . . . 3 Tool/Special 1 | . . . 1 Average Slot Usage (%) 96 | . 97 100 94 Engine 15 | . 11 14 20 Treads 23 | . 28 28 17 Leg 1 | . . . 4 Storage 14 | . 17 14 11 Protection 10 | . 8 14 9 Energy Gun 4 | . 12 . . Energy Cannon 22 | . 14 28 28 Peak Build Rating 21 | 5 10 10 21 Average Rating 12 | 4 9 10 18 On Entrance 6 | . 5 10 10 Naked Turns . | . . . . Heaviest Build 54 | 10 54 36 49 Greatest Support 44 | 40 40 40 44 Greatest Overweight (x) 16 | . 1 . 16 Average Overweight (x) . | . . . 1 Largest Inventory Capacity 20 | 8 20 15 15 Average Capacity 14 | 7 15 15 15 Most Carried 15 | 5 15 15 15 Average Carried 11 | 3 12 12 9 Final Capacity 15 | 8 15 15 15 Final Carried 15 | 5 15 13 9 Class Distribution -------------------- 75% | Mutant 24% | Tank Dominant Class ---------------- Mutant | -10/Materials Mutant | -10/Mines Tank | -9/Materials Resources | -11 -10 -10 -9 ----------- Run | Yrd Mat Min Mat Matter Collected 520 | 225 100 10 185 Remotely . | . . . . Salvage Created 1098 | . 324 248 526 Parts 60 | . 21 8 31 Haulers Intercepted . | . . . . Recyclers Shooed . | . . . . Parts Field Recycled . | . . . . Retrieved Matter . | . . . . Parts Self-Destructed . | . . . . Prevented . | . . . . Kills | -11 -10 -10 -9 ------- Run | Yrd Mat Min Mat Combat Hostiles Destroyed 25 | . 8 6 11 Melee 2 | . . . 2 Guns 4 | . 4 . . Cannons 16 | . 2 5 9 AOE 3 | . 2 1 . Classes Destroyed 5 | . 3 . 2 Watcher 4 | . 3 . 1 Swarmer 3 | . 3 . . Grunt 18 | . 5 6 7 Duelist 1 | . . . 1 Sentry 3 | . . . 3 Best Kill Streak 4 | . 4 2 3 Combat Bots Only 3 | . 3 2 3 Max Kills in Single Turn 2 | . 2 2 1 Gunslinging . | . . . . Exploded 2 | . 2 1 . Melee 1 | . . . 1 Uniques/NPCs Destroyed . | . . . . Combat | -11 -10 -10 -9 -------- Run | Yrd Mat Min Mat Hostile Shots Fired 193 | . 48 20 125 Missed 46 | . 16 4 26 Hits 147 | . 32 16 99 Projectile 147 | . 32 16 99 Critical Strikes 3 | . . . 3 Damage Taken 1739 | . 450 178 1111 Core 362 | . 56 39 267 Absorbed by Shields . | . . . . Ignored by Resistances 483 | . 132 53 298 Regen/Repaired (Parts) 43 | . . . 43 Core Remaining (%) 81 | 100 . 62 . Volleys Fired 57 | . 23 9 25 Largest 3 | . 2 2 3 Hottest 225 | . 136 136 225 Shots Fired 110 | . 45 18 47 Gun 29 | . 29 . . Cannon 81 | . 16 18 47 Launcher . | . . . . Special . | . . . . Kinetic . | . . . . Thermal 95 | . 30 18 47 Explosive . | . . . . Electromagnetic 15 | . 15 . . Robot Hit Streak 21 | . 19 20 21 Robot Miss Streak 4 | . 4 . 3 Penetration Max . | . . . . Secondary Targets 2 | . 2 . . Max Gunslinging Chain 1 | . 1 . . Shots Hit Robots 87 | . 31 15 41 Core Hits 39 | . 17 7 15 Critical Kills . | . . . . Critical Parts Destroyed . | . . . . Critical Strikes 1 | . . . 1 Sever 1 | . . . 1 Melee Attacks 10 | . . . 10 Impact . | . . . . Slashing 10 | . . . 10 Piercing . | . . . . Sneak Attacks 1 | . . . 1 Combat Hostiles . | . . . . Follow-up Attacks . | . . . . Damage Inflicted 2354 | . 838 376 1140 Guns 281 | . 281 . . Cannons 1314 | . 186 328 800 Explosions 419 | . 371 48 . Melee 340 | . . . 340 Ramming . | . . . . Kinetic . | . . . . Thermal 1616 | . 440 376 800 Explosive 228 | . 228 . . Electromagnetic 170 | . 170 . . Impact . | . . . . Slashing 340 | . . . 340 Piercing . | . . . . Highest Corruption . | . . . . Average Corruption . | . . . . Corruption Purged . | . . . . Corruption Blocked . | . . . . Overload Shots . | . . . . Overflow Damage 126 | . 99 12 15 Projectiles 12 | . . 12 . Explosions 99 | . 99 . . Melee 15 | . . . 15 Knockbacks . | . . . . Impact . | . . . . Kinetic . | . . . . Secondary . | . . . . Self-Inflicted Damage 195 | . 178 17 . Shots 4 | . 3 1 . Rammed . | . . . . Targets Rammed . | . . . . Kicked . | . . . . Crushed . | . . . . Highest Temperature 799 | . 320 381 799 Average Temperature 199 | . 115 159 262 Received Heat Transfer 978 | . 177 105 696 Effects 37 | . . . 37 Shutdowns 14 | . . . 14 Energy Bleed 5 | . . . 5 Interference 4 | . . . 4 Matter Decay 1 | . . . 1 Short Circuit 4 | . . . 4 Damage (minor) 5 | . . . 5 Damage (major) 2 | . . . 2 Damage (core) 2 | . . . 2 Siege Activations . | . . . . Martial Activations . | . . . . Shielding Activations . | . . . . Robots Disrupted . | . . . . Combat Hostiles . | . . . . Robots Corrupted . | . . . . Combat Hostiles . | . . . . Parts Fried . | . . . . Impact Corruptions . | . . . . Robots Melted . | . . . . Combat Hostiles . | . . . . Parts Melted 5 | . 1 3 1 Heat Transferred 2692 | . 866 642 1184 Parts Sabotaged . | . . . . Parts Stolen . | . . . . Parts Stripped . | . . . . Power Chain Reactions 3 | . 3 . . Alert | -11 -10 -10 -9 ------- Run | Yrd Mat Min Mat Maximum Alert Level . | . . . . Low Security (%) 100 | 100 100 100 100 Level 1 . | . . . . Level 2 . | . . . . Level 3 . | . . . . Level 4 . | . . . . Level 5 . | . . . . High Security . | . . . . Max Security . | . . . . Peak Influence 124 | . 69 103 124 Initial 16 | . . . 16 Average 19 | . 13 21 25 Influence Increases 827 | . 287 173 367 Destroy 0b10 Robot/C 500 | . 160 120 220 Destroy 0b10 Robot/NC 20 | . 15 . 5 Destroy Leader 138 | . 46 30 62 Successful Hack 25 | . . . 25 Disable Machine 27 | . 18 9 . Destroy Structure 57 | . 33 14 10 Lose Combat Pursuer 60 | . 15 . 45 Influence Decreases 763 | . 287 123 353 Entered New Map 34 | . . . 34 Time Decay 649 | . 257 123 269 Lost Part 80 | . 30 . 50 Squads Dispatched 3 | . 3 . . Investigation 3 | . 3 . . Extermination . | . . . . Reinforcement . | . . . . Assault . | . . . . Garrison . | . . . . Intercept . | . . . . Searches Triggered . | . . . . Construction Impeded . | . . . . Haulers Reinforced . | . . . . Active Scanning Responses . | . . . . Cargo Convoy Interrupts . | . . . . Stealth | -11 -10 -10 -9 --------- Run | Yrd Mat Min Mat Distress Signals 1 | . . . 1 Communications Jammed . | . . . . Distress Signals . | . . . . Times Spotted 44 | . 14 10 20 Peak Tracking Total 9 | . 4 9 6 Tactical Retreats 3 | . 1 . 2 Traps | -11 -10 -10 -9 ------- Run | Yrd Mat Min Mat Traps Triggered 3 | . 2 . 1 Indirectly . | . . . . Trap Hack Attempts . | . . . . Triggered . | . . . . Disarmed 2 | . . . 2 Reprogrammed . | . . . . Reused . | . . . . Traps Extracted . | . . . . Installed . | . . . . Triggered . | . . . . Machines | -11 -10 -10 -9 ---------- Run | Yrd Mat Min Mat Machines Disabled 3 | . 2 1 . Max in Single Turn 2 | . 2 1 . Machines Repaired . | . . . . Machines Dismantled . | . . . . Machines Sabotaged . | . . . . Overloaded Fab Kills . | . . . . Hacking | -11 -10 -10 -9 --------- Run | Yrd Mat Min Mat Machines Accessed 8 | . 4 . 4 Terminals 6 | . 3 . 3 Fabricators . | . . . . Repair Stations 2 | . 1 . 1 Recycling Units . | . . . . Scanalyzers . | . . . . Garrison Access . | . . . . Total Hacks 20 | . 10 . 10 Successful 12 | . 5 . 7 Failed 8 | . 5 . 3 Catastrophic 1 | . 1 . . Database Lockouts . | . . . . Manual . | . . . . Terminals 15 | . 8 . 7 Fabricators . | . . . . Repair Stations 5 | . 2 . 3 Recycling Units . | . . . . Scanalyzers . | . . . . Garrison Access . | . . . . Terminal Hacks 9 | . 5 . 4 Record 4 | . 3 . 1 Prototype ID Bank 1 | . . . 1 Alert Level 1 | . 1 . . Locate Traps 1 | . 1 . . Disarm Traps 1 | . . . 1 Maintenance Status 1 | . . . 1 Fabricator Hacks . | . . . . Repair Station Hacks 3 | . . . 3 Scan Component 1 | . . . 1 Repair 1 | . . . 1 Refit 1 | . . . 1 Recycling Unit Hacks . | . . . . Scanalyzer . | . . . . Garrison Access Hacks . | . . . . Unauthorized Hacks . | . . . . Terminals . | . . . . Fabricators . | . . . . Repair Stations . | . . . . Recycling Units . | . . . . Scanalyzers . | . . . . Garrison Access . | . . . . Data Cores Recovered . | . . . . Used . | . . . . Hacking Detections 5 | . 3 . 2 Full Trace Events 1 | . 1 . . Feedback Events . | . . . . Feedback Blocked . | . . . . Robot Schematics Acquired . | . . . . Robots Built . | . . . . Authchips . | . . . . Time . | . . . . Total Robot Build Rating . | . . . . Part Schematics Acquired . | . . . . Parts Built . | . . . . Authchips . | . . . . Time . | . . . . Total Part Build Rating . | . . . . Parts Repaired 1 | . . . 1 Time 26 | . . . 26 Parts Recycled . | . . . . Recycled Matter . | . . . . Retrieved Matter . | . . . . Retrieved Components . | . . . . Parts Scanalyzed . | . . . . Part Schematics Acquired . | . . . . Parts Damaged . | . . . . Bothacking | -11 -10 -10 -9 ------------ Run | Yrd Mat Min Mat Used RIF Installer . | . . . . Robots Hacked . | . . . . Non-combat . | . . . . Combat . | . . . . Robot Hacks Applied . | . . . . Relay Couplers Released . | . . . . Fabnet Peak Effective % . | . . . . Robots Rewired . | . . . . Allies Hacked . | . . . . Hacks Repelled . | . . . . Allies | -11 -10 -10 -9 -------- Run | Yrd Mat Min Mat Total Allies 2 | . . 2 . Largest Group 2 | . . 2 . Highest-Rated Group 41 | . . 41 . Highest-Rated Ally 31 | . . 31 . Total Orders . | . . . . Ally Attacks 3 | . . 3 . Total Damage . | . . . . Kills . | . . . . Allies Corrupted . | . . . . Allies Melted . | . . . . Intel | -11 -10 -10 -9 ------- Run | Yrd Mat Min Mat Active Infowar (turns) . | . . . . Robot Analysis Total . | . . . . Derelict Logs Recovered . | . . . . Drone Launches . | . . . . Drone Recoveries . | . . . . Exploration | -11 -10 -10 -9 ------------- Run | Yrd Mat Min Mat Turns Passed 2777 | 117 989 618 1053 Spaces Moved 1327 | 81 499 368 379 Core 33 | 24 . . 9 Treads 1218 | 57 499 368 294 Legs 76 | . . . 76 Wheels . | . . . . Hover . | . . . . Flight . | . . . . Fastest Speed 50 | 50 160 160 145 Average Speed 183 | 127 176 160 226 Slowest Speed 850 | 160 240 160 850 Overloaded Moves . | . . . . Propulsion Burnouts . | . . . . Robots Hopped . | . . . . Potential Cave-ins . | . . . . Cave-ins Triggered . | . . . . Exploration Rate (%) 45 | 5 69 66 41 Regions Visited 3 Branch Regions 1 Pre-discovered Areas 1 | . . 1 . Known Exits Taken . | . . . . Unknown Exits Taken 3 | 1 1 1 . Scrap Searched . | . . . . Spaces Dug . | . . . . Terrain Destroyed 55 | . 30 15 10 Melee . | . . . . Projectile 10 | . . . 10 AOE 45 | . 30 15 . Terrain Rammed . | . . . . Walls Destroyed . | . . . . Machines Disabled . | . . . . Actions | -11 -10 -10 -9 --------- Run | Yrd Mat Min Mat Total 1554 | 95 563 383 513 Wait 68 | . 15 . 53 Move 1324 | 80 498 367 379 Hop . | . . . . Pick Up 42 | 10 16 2 14 Fast Attach . | . . . . Attach 17 | 5 6 . 6 Detach 1 | . 1 . . Swap 14 | . 3 1 10 Drop 21 | . 1 4 16 Fire 57 | . 23 9 25 Melee 10 | . . . 10 Ram . | . . . . Kick . | . . . . Crush . | . . . . Escape Stasis . | . . . . Rewire . | . . . . Trap . | . . . . Miscellaneous . | . . . . Route ------- -11/Scrapyard -10/Materials (discovered 2 exits: [*Min] / [*Sub]) -10/Mines (discovered 2 exits: *Mat x2) -9/Materials (discovered 1 exit: [*Mat]) History --------- Turn | Location | Event 11 | -11/Scrapyard | Discovered new exit (range 15) 118 | -11/Scrapyard | Entered Materials 304 | -10/Materials | Build established: Mutant 441 | -10/Materials | Discovered new exit (range 5) 860 | -10/Materials | Discovered new exit (range 12) 1107 | -10/Materials | Entered Mines 1168 | -10/Mines | Discovered new exit (range 3) 1225 | -10/Mines | Learned location of Storage (-7) 1319 | -10/Mines | Discovered new exit (range 8) 1551 | -10/Mines | Assembled infested the area 1725 | -10/Mines | Entered Materials 1725 | -9/Materials | Evolved 2 slots: Power x1, Weapon x1 2023 | -9/Materials | Build established: Tank 2100 | -9/Materials | Discovered new exit (range 8) 2632 | -9/Materials | Repaired Ion Engine 2674 | -9/Materials | Core integrity fell below 50% 2692 | -9/Materials | Build established: Mutant 2778 | -9/Materials | Self-destructed Last Messages --------------- 02684_ Y-45 Defender Lgt. Treads severed. 02685_ K-01 Serf collects debris. 02687_ Y-45 Defender destroyed. 02688_ K-01 Serf collects debris. 02689_ Y-45 Defender destroyed. 02691_ K-01 Serf collects debris. 02695_ U-05 Engineer builds a Wall. 02695_ K-01 Serf collects debris. 02699_ U-05 Engineer builds a Wall. 02701_ K-01 Serf collects debris. 02707_ U-05 Engineer builds a Wall. 02709_ K-01 Serf collects debris. 02712_ R-06 Scavenger collects Lgt. Nuclear Core. 02715_ Sneak attack on R-06 Scavenger. 02715_ Destroyed Lgt. Ion Engine. 02716_ K-01 Serf cleans the Repair Station. 02716_ K-01 Serf collects debris. 02746_ Adv. Treads destroyed. 02767_ Hvy. Particle Cannon destroyed. Map ----- +----------------------------------------------------+ | | | | | | | ?????????????????????????????????????????????????? | | ?????????????????????????????????????????????????? | | ?????????????????????????????????????????????????? | | ?????????????????????????????????????????????????? | | ?????????????????????????????????????????????????? | | ?????????????????????????????????????????????????? | | ?????????????????????????????????????????????????? | | ?????????????????????????????????????????????????? | | ?????????????????????????????????????????????????? | | ?????????????????????????????????????????????????? | | ?????????????????????????????????????????????????? | | ?????????????????????????????????????????????????? | | ?????????????????????????????????? ??????????????? | | ???????????????????????????####?? ??????????????? | | ??????????????????????????? +?? ???????????????? | | ??????????????????????????# #? ???????????????? | | ??????????????????????????# #? ????????????????? | | ??????????????????????????# # ?????????????????? | | ??????????????????????????# # ?????????????????? | | ??????????????????????????# +??????????????????? | | ????????????############### #??????????????????? | | ?????????? u #??????????????????? | | ?????????? @ #??????????????????? | | ?????????? w ag #??????????????????? | | ?????????????##############gg #??????????????????? | | ??????????????????#####???# #?######???????????? | | ???????????????#### ???# ## #???????????? | | ????????????? ### k # ???????? | | ????????????? T / ?????? | | ????????????? ### # ???????? | | ????????????????????? ?### ### #???????????? | | ??????????????????????######+#### ##???????????? | | ???????????????????????#=%*%= # #????????????? | | ???????????????????????#![%!" " + #????????????? | | ???????????????????????# !% " " # #????????????? | | ???????????????????????# ! [ "" #?? #????????????? | | ???????????????????????# #????????????????? | | ???????????????????????# #????????????????? | | ???????????????????????# " " #????????????????? | | ???????????????????????+ "R" #????????????????? | | ???????????????????????# """ #????###?????????? | | ???????????????????????####/#####??? ????????? | | ??????????????????????????# #?????? ???????? | | ?????????????????????????## #????? ???????? | | ?????????????????????????#" #####? ???????? | | ?????????????????????????## #"""# #?????????? | | ??????????????????????????# #"T"# #?????????? | +----------------------------------------------------+ Best States ------------- Heat Dissipation 28 Energy Generation 15 Energy Capacity 275 Matter Stores 300 Matter Capacity 300 Sight Range 16 Terrain Scan Density 10 Armor Coverage 150 Resistance: KI 20 Resistance: TH 20 Resistance: EX 20 Resistance: EM 20 Resistance: I 20 Resistance: S 20 Resistance: P 20 Evasion (%) 40 Recoil Reduction 2 Offensive Hacking 10 Item Schematics ----------------- None Robot Schematics ------------------ None Fabricated ------------ Nothing Repaired ---------- Ion Engine | 28% | -9/Materials Alien Tech Used ----------------- None Achievements -------------- None Challenges ------------ None Game ------ Seed ThermalCarbideTelecube Manual? 0 Play Time 00:33:26 Cumulative 10.9 hours Start 2025.08.22 @ 20:19:57 End 2025.08.22 @ 20:54:12 Sessions 1 Manual Loads 0 Difficulty Adventurer Special Mode None Game No. 24 Rogue 22 Adventurer 2 Explorer 0 Win Type - Total 0 Types 0/0/0/0/0/0/0/0/0/0 Lore% 4 Gallery% 14 Achievement% 18 Wizard Run 0 Options --------- Layout 1 ASCII 0 Keyboard 0 Movement Numpad Keybinds 0 Fullscreen 1 Font 32/SmallcapsGlow Map View 50x35 Zoom Use 0% Tactical HUD 1 Map Filters NONE Filters NONE Steam 1 RUN: e9fff25e-99e9-405e-9415-67f43c4b38d3